[Event "Early-Titled-Tuesday-Blitz-February-06-2024"]
[Site "Chess.com"]
[Date "2024.02.06"]
[Round "9"]
[White "BashirliSaadat"]
[Black "mary-sanna"]
[Result "1-0"]
[WhiteElo "2335"]
[BlackElo "2190"]
[TimeControl "180+1"]
[EndTime "9:43:47 PST"]
[Termination "BashirliSaadat won by resignation"]

1. d4 {[%clk 0:03:00.9]} 1... d5 {[%clk 0:02:58.2]} 2. e3 {[%clk 0:03:00.1]}
2... Nf6 {[%clk 0:02:57.4]} 3. Bd3 {[%clk 0:02:59.3]} 3... c5 {[%clk 0:02:52.1]}
4. c3 {[%clk 0:02:58.9]} 4... Bg4 {[%clk 0:02:47.7]} 5. f3 {[%clk 0:02:57.4]}
5... Bh5 {[%clk 0:02:45.6]} 6. Ne2 {[%clk 0:02:56.6]} 6... e6 {[%clk 0:02:43.6]}
7. O-O {[%clk 0:02:56.7]} 7... Bd6 {[%clk 0:02:42.3]} 8. Ng3 {[%clk 0:02:44.5]}
8... Bg6 {[%clk 0:02:40.2]} 9. e4 {[%clk 0:02:43.7]} 9... Bxg3 {[%clk
0:02:30.6]} 10. hxg3 {[%clk 0:02:43.1]} 10... dxe4 {[%clk 0:02:30.9]} 11. fxe4
{[%clk 0:02:27.9]} 11... Nxe4 {[%clk 0:02:20.5]} 12. Qf3 {[%clk 0:02:21.2]}
12... Qd5 {[%clk 0:01:47.1]} 13. Be3 {[%clk 0:01:38.8]} 13... O-O {[%clk
0:01:32.2]} 14. c4 {[%clk 0:01:29.5]} 14... Qc6 {[%clk 0:01:31.8]} 15. dxc5
{[%clk 0:01:11.4]} 15... Nd7 {[%clk 0:01:12]} 16. b4 {[%clk 0:01:05.3]} 16...
Ndf6 {[%clk 0:00:56]} 17. Bf4 {[%clk 0:00:45.7]} 17... Rad8 {[%clk 0:00:45]} 18.
Be2 {[%clk 0:00:32.7]} 18... Bh5 {[%clk 0:00:29.1]} 19. Qe3 {[%clk 0:00:31.7]}
19... Bxe2 {[%clk 0:00:20.3]} 20. Qxe2 {[%clk 0:00:32.6]} 20... g5 {[%clk
0:00:19.4]} 21. Be5 {[%clk 0:00:31.3]} 21... Nxg3 {[%clk 0:00:18.3]} 22. Bxg3
{[%clk 0:00:27.4]} 22... Kg7 {[%clk 0:00:17.2]} 23. Be5 {[%clk 0:00:26.2]} 1-0

[Event "Early-Titled-Tuesday-Blitz-February-06-2024"]
[Site "Chess.com"]
[Date "2024.02.06"]
[Round "9"]
[White "andrzej"]
[Black "flomarechot"]
[Result "1-0"]
[WhiteElo "2426"]
[BlackElo "2300"]
[TimeControl "180+1"]
[EndTime "9:43:48 PST"]
[Termination "andrzej won on time"]

1. e4 {[%clk 0:03:00.9]} 1... d6 {[%clk 0:02:59.7]} 2. d4 {[%clk 0:03:00.6]}
2... Nf6 {[%clk 0:02:59.9]} 3. Nc3 {[%clk 0:03:01]} 3... e5 {[%clk 0:03:00.5]}
4. Nf3 {[%clk 0:03:00.3]} 4... Nbd7 {[%clk 0:03:00.1]} 5. Bc4 {[%clk 0:03:00.4]}
5... Be7 {[%clk 0:03:00.7]} 6. O-O {[%clk 0:02:59.8]} 6... O-O {[%clk
0:03:00.7]} 7. a4 {[%clk 0:03:00.2]} 7... c6 {[%clk 0:03:00.8]} 8. Re1 {[%clk
0:02:54.6]} 8... b6 {[%clk 0:02:50]} 9. d5 {[%clk 0:02:47.7]} 9... Bb7 {[%clk
0:02:44.4]} 10. dxc6 {[%clk 0:02:43.4]} 10... Bxc6 {[%clk 0:02:45.3]} 11. Bg5
{[%clk 0:02:42.6]} 11... Qc7 {[%clk 0:01:46.4]} 12. Qe2 {[%clk 0:02:39.5]} 12...
Bb7 {[%clk 0:01:30.8]} 13. Nb5 {[%clk 0:02:31.1]} 13... Qb8 {[%clk 0:01:30.2]}
14. Nd2 {[%clk 0:02:23.2]} 14... a6 {[%clk 0:01:30.1]} 15. Nc3 {[%clk
0:02:22.5]} 15... Qc7 {[%clk 0:01:30.5]} 16. Nf1 {[%clk 0:01:59.6]} 16... Rfc8
{[%clk 0:01:25.1]} 17. Bb3 {[%clk 0:02:00.2]} 17... h6 {[%clk 0:01:15.4]} 18.
Bxf6 {[%clk 0:01:58.3]} 18... Nxf6 {[%clk 0:01:10.4]} 19. Ne3 {[%clk 0:01:55.1]}
19... Nxe4 {[%clk 0:00:33]} 20. Ncd5 {[%clk 0:01:54.3]} 20... Qd8 {[%clk
0:00:31.2]} 21. Nxe7+ {[%clk 0:01:49.6]} 21... Qxe7 {[%clk 0:00:32.1]} 22. Nd5
{[%clk 0:01:49]} 22... Bxd5 {[%clk 0:00:30.4]} 23. Bxd5 {[%clk 0:01:49.9]} 23...
Nf6 {[%clk 0:00:28.5]} 24. Bxa8 {[%clk 0:01:49.6]} 24... Rxa8 {[%clk 0:00:29.4]}
25. Rad1 {[%clk 0:01:47.8]} 25... a5 {[%clk 0:00:23.9]} 26. Qb5 {[%clk
0:01:46.8]} 26... Qc7 {[%clk 0:00:20.4]} 27. c3 {[%clk 0:01:46.4]} 27... Rd8
{[%clk 0:00:20.1]} 28. h3 {[%clk 0:01:44.2]} 28... g6 {[%clk 0:00:20.1]} 29. Rd2
{[%clk 0:01:44]} 29... d5 {[%clk 0:00:18.8]} 30. Rde2 {[%clk 0:01:40.6]} 30...
e4 {[%clk 0:00:17.1]} 31. Rd1 {[%clk 0:01:40.1]} 31... Kg7 {[%clk 0:00:17.3]}
32. Red2 {[%clk 0:01:34]} 32... Rd6 {[%clk 0:00:17.2]} 33. Qe2 {[%clk
0:01:31.4]} 33... Qd7 {[%clk 0:00:17.1]} 34. Qe3 {[%clk 0:01:31.5]} 34... Qxa4
{[%clk 0:00:15.8]} 35. Qf4 {[%clk 0:01:20.2]} 35... Qd7 {[%clk 0:00:14.7]} 36.
Qe5 {[%clk 0:01:19.9]} 36... Kh7 {[%clk 0:00:13]} 37. c4 {[%clk 0:01:08.9]}
37... Re6 {[%clk 0:00:02.4]} 38. Qb8 {[%clk 0:01:07.7]} 1-0

[Event "Early-Titled-Tuesday-Blitz-February-06-2024"]
[Site "Chess.com"]
[Date "2024.02.06"]
[Round "9"]
[White "Juwen"]
[Black "Anton_Demchenko"]
[Result "1-0"]
[WhiteElo "2614"]
[BlackElo "2879"]
[TimeControl "180+1"]
[EndTime "9:43:49 PST"]
[Termination "Juwen won by resignation"]

1. d4 {[%clk 0:03:00.9]} 1... Nf6 {[%clk 0:02:59.9]} 2. c4 {[%clk 0:02:59.9]}
2... d6 {[%clk 0:03:00.5]} 3. Nf3 {[%clk 0:02:59.3]} 3... Nc6 {[%clk 0:03:00.3]}
4. g3 {[%clk 0:02:57.6]} 4... e5 {[%clk 0:03:00.1]} 5. dxe5 {[%clk 0:02:57.1]}
5... dxe5 {[%clk 0:02:58.7]} 6. Qxd8+ {[%clk 0:02:50.9]} 6... Kxd8 {[%clk
0:02:59.6]} 7. Bg5 {[%clk 0:02:50.9]} 7... Be6 {[%clk 0:02:58.4]} 8. Nbd2 {[%clk
0:02:42.5]} 8... Kc8 {[%clk 0:02:58.4]} 9. Bxf6 {[%clk 0:02:23.1]} 9... gxf6
{[%clk 0:02:59.3]} 10. O-O-O {[%clk 0:02:23.3]} 10... a5 {[%clk 0:02:54.6]} 11.
e3 {[%clk 0:02:19.9]} 11... a4 {[%clk 0:02:52.5]} 12. a3 {[%clk 0:02:14.4]}
12... Be7 {[%clk 0:02:51.3]} 13. h4 {[%clk 0:02:14.3]} 13... f5 {[%clk 0:02:24]}
14. Ng5 {[%clk 0:02:08.9]} 14... e4 {[%clk 0:02:14.6]} 15. Nxe6 {[%clk
0:01:43.1]} 15... fxe6 {[%clk 0:02:14.8]} 16. g4 {[%clk 0:01:43.8]} 16... Rf8
{[%clk 0:02:02.7]} 17. gxf5 {[%clk 0:01:27.2]} 17... exf5 {[%clk 0:02:03.2]} 18.
Be2 {[%clk 0:01:27.9]} 18... Bf6 {[%clk 0:01:42]} 19. f3 {[%clk 0:01:23.2]}
19... Ra6 {[%clk 0:01:36]} 20. Kc2 {[%clk 0:01:16.2]} 20... exf3 {[%clk
0:01:29.2]} 21. Nxf3 {[%clk 0:01:15.2]} 21... Rb6 {[%clk 0:01:23.1]} 22. Nd4
{[%clk 0:00:56.8]} 22... Re8 {[%clk 0:01:23.3]} 23. Nb5 {[%clk 0:00:32.8]} 23...
Ne5 {[%clk 0:00:54.4]} 24. Rhf1 {[%clk 0:00:30.3]} 24... Bxh4 {[%clk 0:00:50.3]}
25. Rxf5 {[%clk 0:00:29.3]} 25... Rf6 {[%clk 0:00:50.9]} 26. Rh5 {[%clk
0:00:21.1]} 26... Rf2 {[%clk 0:00:51]} 27. Rd2 {[%clk 0:00:20.2]} 27... Be7
{[%clk 0:00:38.4]} 28. Rxe5 {[%clk 0:00:19.5]} 28... Kb8 {[%clk 0:00:34.2]} 29.
Rxe7 {[%clk 0:00:15.7]} 1-0

[Event "Early-Titled-Tuesday-Blitz-February-06-2024"]
[Site "Chess.com"]
[Date "2024.02.06"]
[Round "9"]
[White "frequentblunders"]
[Black "Canal_Showdrez"]
[Result "1-0"]
[WhiteElo "2173"]
[BlackElo "2036"]
[TimeControl "180+1"]
[EndTime "9:43:52 PST"]
[Termination "frequentblunders won by checkmate"]

1. d3 {[%clk 0:02:59.7]} 1... d6 {[%clk 0:02:55.1]} 2. f4 {[%clk 0:03:00.6]}
2... Nf6 {[%clk 0:02:55.3]} 3. Nf3 {[%clk 0:03:01.5]} 3... g6 {[%clk 0:02:55.8]}
4. g3 {[%clk 0:03:01.6]} 4... Bg7 {[%clk 0:02:55.8]} 5. Bg2 {[%clk 0:03:02.5]}
5... h5 {[%clk 0:02:55.9]} 6. O-O {[%clk 0:03:03.4]} 6... O-O {[%clk 0:02:55.2]}
7. e4 {[%clk 0:03:03.7]} 7... c5 {[%clk 0:02:51.6]} 8. c4 {[%clk 0:03:04.1]}
8... Nc6 {[%clk 0:02:51.2]} 9. Nc3 {[%clk 0:03:04.3]} 9... Nd4 {[%clk
0:02:50.4]} 10. h3 {[%clk 0:03:02.1]} 10... Bd7 {[%clk 0:02:40.4]} 11. Be3
{[%clk 0:03:00.3]} 11... Nxf3+ {[%clk 0:02:28.3]} 12. Qxf3 {[%clk 0:03:01.2]}
12... Bc6 {[%clk 0:02:20.2]} 13. Kh2 {[%clk 0:02:52]} 13... e6 {[%clk
0:02:15.3]} 14. Rae1 {[%clk 0:02:45.7]} 14... Nd7 {[%clk 0:02:09.9]} 15. g4
{[%clk 0:02:35.7]} 15... hxg4 {[%clk 0:02:08.8]} 16. hxg4 {[%clk 0:02:36.6]}
16... f5 {[%clk 0:02:05.6]} 17. g5 {[%clk 0:02:29.2]} 17... Kf7 {[%clk
0:01:53.6]} 18. Kg3 {[%clk 0:02:28.2]} 18... Rh8 {[%clk 0:01:50.3]} 19. Rh1
{[%clk 0:02:27.3]} 19... Qa5 {[%clk 0:01:47.8]} 20. Nd5 {[%clk 0:01:59.7]} 20...
Qxa2 {[%clk 0:00:53.2]} 21. exf5 {[%clk 0:01:42]} 21... exd5 {[%clk 0:00:48.6]}
22. fxg6+ {[%clk 0:01:30.9]} 22... Kg8 {[%clk 0:00:44.5]} 23. cxd5 {[%clk
0:01:10.4]} 23... Bb5 {[%clk 0:00:43.1]} 24. Rxh8+ {[%clk 0:01:04]} 24... Bxh8
{[%clk 0:00:41.6]} 25. Bh3 {[%clk 0:00:54.1]} 25... Nf8 {[%clk 0:00:38.9]} 26.
f5 {[%clk 0:00:46.7]} 26... Re8 {[%clk 0:00:33.9]} 27. f6 {[%clk 0:00:30.8]}
27... Re5 {[%clk 0:00:22]} 28. f7+ {[%clk 0:00:26]} 28... Kg7 {[%clk 0:00:21.6]}
29. Qf6# {[%clk 0:00:25.4]} 1-0

[Event "Early-Titled-Tuesday-Blitz-February-06-2024"]
[Site "Chess.com"]
[Date "2024.02.06"]
[Round "9"]
[White "Sattarov_Bobur"]
[Black "HansOnTwitch"]
[Result "0-1"]
[WhiteElo "2801"]
[BlackElo "3168"]
[TimeControl "180+1"]
[EndTime "9:43:53 PST"]
[Termination "HansOnTwitch won by resignation"]

1. e4 {[%clk 0:03:00.9]} 1... c5 {[%clk 0:02:50]} 2. Nf3 {[%clk 0:02:57.3]} 2...
d6 {[%clk 0:02:50]} 3. d4 {[%clk 0:02:57]} 3... cxd4 {[%clk 0:02:50.9]} 4. Nxd4
{[%clk 0:02:57.6]} 4... Nf6 {[%clk 0:02:51.4]} 5. Nc3 {[%clk 0:02:52.7]} 5... a6
{[%clk 0:02:51.3]} 6. a3 {[%clk 0:02:52.5]} 6... Nc6 {[%clk 0:02:50.4]} 7. Bc4
{[%clk 0:02:48.8]} 7... e6 {[%clk 0:02:43.8]} 8. O-O {[%clk 0:02:48.1]} 8... Be7
{[%clk 0:02:41.7]} 9. Be3 {[%clk 0:02:44.3]} 9... O-O {[%clk 0:02:41.5]} 10. Ba2
{[%clk 0:02:38.2]} 10... Nxd4 {[%clk 0:02:38.3]} 11. Qxd4 {[%clk 0:02:37]} 11...
b5 {[%clk 0:02:34.2]} 12. f4 {[%clk 0:02:36]} 12... Bb7 {[%clk 0:02:34.3]} 13.
f5 {[%clk 0:02:35.6]} 13... e5 {[%clk 0:02:20.9]} 14. Qd3 {[%clk 0:02:36.1]}
14... Rc8 {[%clk 0:02:21.3]} 15. Bg5 {[%clk 0:02:34.7]} 15... Rxc3 {[%clk
0:02:20.3]} 16. bxc3 {[%clk 0:02:28.4]} 16... Nxe4 {[%clk 0:02:05.8]} 17. Bxe7
{[%clk 0:02:26.9]} 17... Qxe7 {[%clk 0:02:06.7]} 18. Rae1 {[%clk 0:01:51.7]}
18... d5 {[%clk 0:02:03.8]} 19. Kh1 {[%clk 0:01:01.5]} 19... Qc5 {[%clk
0:02:02.6]} 20. Rxe4 {[%clk 0:00:53.4]} 20... dxe4 {[%clk 0:02:01.7]} 21. Qg3
{[%clk 0:00:54.1]} 21... Rd8 {[%clk 0:01:33.7]} 22. f6 {[%clk 0:00:48.4]} 22...
g6 {[%clk 0:01:32]} 23. Qh4 {[%clk 0:00:45.5]} 23... Qf8 {[%clk 0:01:12.8]} 24.
Qg5 {[%clk 0:00:42.2]} 24... Bd5 {[%clk 0:01:04.6]} 25. Bb3 {[%clk 0:00:29.6]}
25... Bxb3 {[%clk 0:01:00.2]} 26. cxb3 {[%clk 0:00:30.5]} 26... h6 {[%clk
0:01:00.6]} 27. Qxe5 {[%clk 0:00:29.4]} 27... Re8 {[%clk 0:01:01.1]} 28. Qd4
{[%clk 0:00:27.9]} 28... Qxa3 {[%clk 0:01:00.7]} 29. b4 {[%clk 0:00:23.7]} 29...
Qa2 {[%clk 0:00:57.3]} 30. Re1 {[%clk 0:00:20.7]} 30... Qe6 {[%clk 0:00:56.7]}
31. Re3 {[%clk 0:00:17.5]} 31... g5 {[%clk 0:00:57.1]} 32. h3 {[%clk 0:00:17.4]}
32... Kh7 {[%clk 0:00:57.4]} 33. Kg1 {[%clk 0:00:16.1]} 33... h5 {[%clk
0:00:57.8]} 34. Kf2 {[%clk 0:00:15.1]} 34... h4 {[%clk 0:00:57.4]} 35. Kg1
{[%clk 0:00:15]} 35... Kg6 {[%clk 0:00:57.7]} 36. Kh2 {[%clk 0:00:13.5]} 36...
Qe5+ {[%clk 0:00:57.8]} 37. Qxe5 {[%clk 0:00:08.2]} 37... Rxe5 {[%clk
0:00:58.7]} 38. Kg1 {[%clk 0:00:08.2]} 38... Kxf6 {[%clk 0:00:58.6]} 0-1

[Event "Early-Titled-Tuesday-Blitz-February-06-2024"]
[Site "Chess.com"]
[Date "2024.02.06"]
[Round "9"]
[White "verrbaa"]
[Black "Semetey"]
[Result "1-0"]
[WhiteElo "2507"]
[BlackElo "2614"]
[TimeControl "180+1"]
[EndTime "9:43:54 PST"]
[Termination "verrbaa won by resignation"]

1. e4 {[%clk 0:03:00.9]} 1... e5 {[%clk 0:02:40.5]} 2. Nf3 {[%clk 0:03:00.5]}
2... Nc6 {[%clk 0:02:39.7]} 3. Bb5 {[%clk 0:03:00.5]} 3... a6 {[%clk 0:02:39]}
4. Ba4 {[%clk 0:03:00.6]} 4... Nf6 {[%clk 0:02:37.4]} 5. O-O {[%clk 0:03:00.6]}
5... Be7 {[%clk 0:02:35.9]} 6. Re1 {[%clk 0:03:00.6]} 6... b5 {[%clk 0:02:35.4]}
7. Bb3 {[%clk 0:03:00.3]} 7... O-O {[%clk 0:02:34.7]} 8. d4 {[%clk 0:03:00]}
8... d6 {[%clk 0:02:25]} 9. c3 {[%clk 0:02:58.4]} 9... Bg4 {[%clk 0:02:22]} 10.
Be3 {[%clk 0:02:50.5]} 10... Bxf3 {[%clk 0:02:18.3]} 11. Qxf3 {[%clk 0:02:49.1]}
11... exd4 {[%clk 0:02:18.1]} 12. cxd4 {[%clk 0:02:48.9]} 12... Na5 {[%clk
0:02:12]} 13. Bc2 {[%clk 0:02:47.1]} 13... c5 {[%clk 0:02:07.5]} 14. e5 {[%clk
0:02:09.7]} 14... dxe5 {[%clk 0:02:01]} 15. dxe5 {[%clk 0:02:10.6]} 15... Nd5
{[%clk 0:02:01.5]} 16. Rd1 {[%clk 0:02:01.9]} 16... Nxe3 {[%clk 0:01:55.6]} 17.
Rxd8 {[%clk 0:01:57.3]} 17... Nxc2 {[%clk 0:01:55.9]} 18. Rxa8 {[%clk
0:01:54.6]} 18... Nxa1 {[%clk 0:01:55.4]} 19. Rxf8+ {[%clk 0:01:54.6]} 19...
Bxf8 {[%clk 0:01:31.8]} 20. Qd1 {[%clk 0:01:53.8]} 20... Nc4 {[%clk 0:01:18.1]}
21. Nc3 {[%clk 0:01:51.8]} 21... Nxb2 {[%clk 0:01:18.1]} 22. Qxa1 {[%clk
0:01:51.4]} 22... Nd3 {[%clk 0:01:18.8]} 23. Nd5 {[%clk 0:01:49.3]} 23... c4
{[%clk 0:01:17.8]} 24. g3 {[%clk 0:01:13.5]} 24... Bc5 {[%clk 0:01:16.1]} 25.
Ne3 {[%clk 0:01:05.8]} 25... g6 {[%clk 0:01:05.1]} 26. Kg2 {[%clk 0:01:05.7]}
26... Ba3 {[%clk 0:00:47.5]} 27. f4 {[%clk 0:00:53.4]} 27... Bb2 {[%clk
0:00:46.4]} 28. Qd1 {[%clk 0:00:53.2]} 28... Bd4 {[%clk 0:00:43.1]} 29. Kf3
{[%clk 0:00:52.3]} 29... h5 {[%clk 0:00:41.8]} 30. a4 {[%clk 0:00:44.8]} 30...
Kg7 {[%clk 0:00:35.9]} 31. axb5 {[%clk 0:00:42.6]} 31... axb5 {[%clk 0:00:36.8]}
32. Qb1 {[%clk 0:00:37.7]} 32... Bb2 {[%clk 0:00:34.7]} 33. Nd5 {[%clk
0:00:28.2]} 33... Nc5 {[%clk 0:00:29.4]} 34. Qxb2 {[%clk 0:00:24.6]} 1-0

[Event "Early-Titled-Tuesday-Blitz-February-06-2024"]
[Site "Chess.com"]
[Date "2024.02.06"]
[Round "9"]
[White "Talent-OF-Slovenia"]
[Black "AldokhinIvan"]
[Result "0-1"]
[WhiteElo "2457"]
[BlackElo "2622"]
[TimeControl "180+1"]
[EndTime "9:43:55 PST"]
[Termination "AldokhinIvan won by resignation"]

1. e4 {[%clk 0:03:00.9]} 1... c5 {[%clk 0:02:59.7]} 2. Nf3 {[%clk 0:02:59.3]}
2... e6 {[%clk 0:03:00.2]} 3. d4 {[%clk 0:02:59.2]} 3... cxd4 {[%clk 0:03:00.3]}
4. Nxd4 {[%clk 0:03:00.1]} 4... a6 {[%clk 0:03:00.8]} 5. Nc3 {[%clk 0:02:59.4]}
5... Nf6 {[%clk 0:03:01.2]} 6. Bd3 {[%clk 0:02:59.5]} 6... Qc7 {[%clk
0:03:01.3]} 7. O-O {[%clk 0:02:58.6]} 7... d6 {[%clk 0:03:01.7]} 8. Re1 {[%clk
0:02:57.9]} 8... Be7 {[%clk 0:03:00.8]} 9. Be3 {[%clk 0:02:57.4]} 9... b5 {[%clk
0:03:00.8]} 10. a3 {[%clk 0:02:55.6]} 10... Bb7 {[%clk 0:03:00.9]} 11. h3 {[%clk
0:02:55]} 11... Nbd7 {[%clk 0:03:01.3]} 12. Qe2 {[%clk 0:02:52.1]} 12... O-O
{[%clk 0:03:00]} 13. Rad1 {[%clk 0:02:50.2]} 13... Rac8 {[%clk 0:02:59.5]} 14.
Nb3 {[%clk 0:02:36.7]} 14... Nc5 {[%clk 0:02:56.1]} 15. Bxc5 {[%clk 0:02:24.8]}
15... dxc5 {[%clk 0:02:51.2]} 16. e5 {[%clk 0:02:25.5]} 16... c4 {[%clk
0:02:40.9]} 17. Bxc4 {[%clk 0:02:12.7]} 17... bxc4 {[%clk 0:02:28.8]} 18. exf6
{[%clk 0:02:09.6]} 18... Bxf6 {[%clk 0:02:26.7]} 19. Nd4 {[%clk 0:02:08.4]}
19... Rfd8 {[%clk 0:02:26.6]} 20. Nf3 {[%clk 0:01:57.1]} 20... Qb6 {[%clk
0:02:06.5]} 21. Na4 {[%clk 0:01:36]} 21... Qb5 {[%clk 0:02:01.3]} 22. Nc3 {[%clk
0:01:32.9]} 22... Qxb2 {[%clk 0:01:56.4]} 23. Ne4 {[%clk 0:01:26.3]} 23... Bxe4
{[%clk 0:01:50.1]} 24. Qxe4 {[%clk 0:01:27.2]} 24... Rxd1 {[%clk 0:01:47]} 25.
Rxd1 {[%clk 0:01:25.7]} 25... Qxa3 {[%clk 0:01:47.5]} 26. Qb7 {[%clk 0:01:25.8]}
26... Rf8 {[%clk 0:01:40]} 27. Qc6 {[%clk 0:01:12.7]} 27... Qc3 {[%clk
0:01:27.9]} 28. Qe4 {[%clk 0:00:57.7]} 28... a5 {[%clk 0:01:26.4]} 29. g4 {[%clk
0:00:53.2]} 29... g6 {[%clk 0:01:20]} 30. h4 {[%clk 0:00:48.5]} 30... a4 {[%clk
0:01:16.7]} 31. g5 {[%clk 0:00:43.9]} 31... Bg7 {[%clk 0:01:16.1]} 32. h5 {[%clk
0:00:41.7]} 32... a3 {[%clk 0:01:14.9]} 33. h6 {[%clk 0:00:41.1]} 33... Bh8
{[%clk 0:01:14.4]} 34. Qb7 {[%clk 0:00:04.4]} 34... a2 {[%clk 0:01:11.9]} 35.
Kg2 {[%clk 0:00:04.3]} 35... a1=Q {[%clk 0:01:10.5]} 36. Rd7 {[%clk 0:00:05.2]}
36... Qa8 {[%clk 0:01:00.3]} 37. Qc7 {[%clk 0:00:05.1]} 37... Qaxf3+ {[%clk
0:00:57.5]} 0-1

[Event "Early-Titled-Tuesday-Blitz-February-06-2024"]
[Site "Chess.com"]
[Date "2024.02.06"]
[Round "9"]
[White "bescmelasti"]
[Black "Casper"]
[Result "1-0"]
[WhiteElo "2688"]
[BlackElo "2525"]
[TimeControl "180+1"]
[EndTime "9:43:59 PST"]
[Termination "bescmelasti won on time"]

1. e4 {[%clk 0:03:00.9]} 1... g6 {[%clk 0:02:59.3]} 2. d4 {[%clk 0:02:59.4]}
2... Bg7 {[%clk 0:03:00.2]} 3. Nc3 {[%clk 0:02:55.8]} 3... d6 {[%clk 0:03:00.7]}
4. Be3 {[%clk 0:02:54.8]} 4... f5 {[%clk 0:03:00.9]} 5. Nf3 {[%clk 0:02:47.7]}
5... Nf6 {[%clk 0:03:00.4]} 6. exf5 {[%clk 0:02:42.8]} 6... Bxf5 {[%clk
0:03:00.1]} 7. Bc4 {[%clk 0:02:42.6]} 7... d5 {[%clk 0:02:55.5]} 8. Bb3 {[%clk
0:02:33]} 8... O-O {[%clk 0:02:54.9]} 9. O-O {[%clk 0:02:31.3]} 9... Kh8 {[%clk
0:02:54.8]} 10. Ne5 {[%clk 0:02:26.8]} 10... c6 {[%clk 0:02:46.2]} 11. Ne2
{[%clk 0:02:25.8]} 11... Nbd7 {[%clk 0:02:45.2]} 12. c4 {[%clk 0:02:20.3]} 12...
Nxe5 {[%clk 0:02:31.3]} 13. dxe5 {[%clk 0:02:21.1]} 13... Ng4 {[%clk 0:02:32.2]}
14. Bd4 {[%clk 0:02:19.9]} 14... dxc4 {[%clk 0:02:30.4]} 15. Bxc4 {[%clk
0:02:19.3]} 15... Nxe5 {[%clk 0:02:31.1]} 16. Bb3 {[%clk 0:02:16.1]} 16... Nd3
{[%clk 0:02:17.9]} 17. Bxg7+ {[%clk 0:02:15.1]} 17... Kxg7 {[%clk 0:02:18.8]}
18. Ng3 {[%clk 0:02:08.4]} 18... Qd4 {[%clk 0:02:09.9]} 19. Qe2 {[%clk
0:02:02.6]} 19... e5 {[%clk 0:02:04.3]} 20. Rad1 {[%clk 0:01:59.1]} 20... Rad8
{[%clk 0:01:59.2]} 21. Bc2 {[%clk 0:01:50.8]} 21... e4 {[%clk 0:01:38.1]} 22. h4
{[%clk 0:01:40.6]} 22... h5 {[%clk 0:01:26.2]} 23. Rfe1 {[%clk 0:01:33.3]} 23...
Bg4 {[%clk 0:01:16.3]} 24. Qxe4 {[%clk 0:01:33.4]} 24... Qxe4 {[%clk 0:01:07.2]}
25. Nxe4 {[%clk 0:01:29.4]} 25... Bxd1 {[%clk 0:01:07.8]} 26. Rxd1 {[%clk
0:01:27.6]} 26... Nxb2 {[%clk 0:01:01.7]} 27. Rb1 {[%clk 0:01:27.3]} 27... Nc4
{[%clk 0:01:02.2]} 28. Rxb7+ {[%clk 0:01:26.8]} 28... Kh8 {[%clk 0:00:51.5]} 29.
Ng5 {[%clk 0:01:23.2]} 29... Rb8 {[%clk 0:00:07]} 30. Rh7+ {[%clk 0:01:16.4]}
30... Kg8 {[%clk 0:00:07.7]} 31. Bxg6 {[%clk 0:01:07]} 31... Ne5 {[%clk
0:00:08]} 32. Bc2 {[%clk 0:00:55.9]} 32... c5 {[%clk 0:00:04]} 33. Be4 {[%clk
0:00:53.2]} 33... Rbd8 {[%clk 0:00:02.2]} 34. f3 {[%clk 0:00:42.8]} 1-0

[Event "Early-Titled-Tuesday-Blitz-February-06-2024"]
[Site "Chess.com"]
[Date "2024.02.06"]
[Round "9"]
[White "Qingdom"]
[Black "alekroth65"]
[Result "0-1"]
[WhiteElo "2147"]
[BlackElo "2376"]
[TimeControl "180+1"]
[EndTime "9:44:00 PST"]
[Termination "alekroth65 won by resignation"]

1. d4 {[%clk 0:03:00.9]} 1... Nf6 {[%clk 0:02:57.5]} 2. Bg5 {[%clk 0:03:00.7]}
2... Ne4 {[%clk 0:02:55.7]} 3. Bf4 {[%clk 0:03:00.7]} 3... d5 {[%clk 0:02:53.9]}
4. f3 {[%clk 0:03:00.2]} 4... Nf6 {[%clk 0:02:51.3]} 5. e4 {[%clk 0:03:00.2]}
5... dxe4 {[%clk 0:02:48.4]} 6. Nc3 {[%clk 0:03:00]} 6... exf3 {[%clk
0:02:46.1]} 7. Nxf3 {[%clk 0:03:00]} 7... e6 {[%clk 0:02:45]} 8. Bc4 {[%clk
0:02:59.5]} 8... Bb4 {[%clk 0:02:43]} 9. Qe2 {[%clk 0:02:57.7]} 9... O-O {[%clk
0:02:40.5]} 10. O-O-O {[%clk 0:02:56.8]} 10... Bxc3 {[%clk 0:02:39.2]} 11. bxc3
{[%clk 0:02:56.6]} 11... Nd5 {[%clk 0:02:38.9]} 12. Bd2 {[%clk 0:02:56]} 12...
Qd6 {[%clk 0:02:33.8]} 13. Bd3 {[%clk 0:02:52.2]} 13... h6 {[%clk 0:02:23.3]}
14. c4 {[%clk 0:02:49.8]} 14... Qa3+ {[%clk 0:02:20.6]} 15. Kb1 {[%clk
0:02:49.3]} 15... Nc3+ {[%clk 0:02:20.4]} 16. Bxc3 {[%clk 0:02:49.6]} 16... Qxc3
{[%clk 0:02:20.3]} 17. Qe4 {[%clk 0:02:40.5]} 17... f5 {[%clk 0:02:15.5]} 18.
Qh4 {[%clk 0:02:28.7]} 18... Nc6 {[%clk 0:02:11.1]} 19. Ne5 {[%clk 0:02:17.5]}
19... Nxe5 {[%clk 0:02:07.9]} 20. dxe5 {[%clk 0:02:17.1]} 20... Qxe5 {[%clk
0:02:06]} 21. Rhe1 {[%clk 0:02:14]} 21... Qf6 {[%clk 0:02:05.2]} 22. Qh5 {[%clk
0:02:08.2]} 22... Bd7 {[%clk 0:01:47.8]} 23. Bxf5 {[%clk 0:02:05.3]} 23... Be8
{[%clk 0:01:47.4]} 24. Bxe6+ {[%clk 0:01:57]} 24... Qxe6 {[%clk 0:01:45.4]} 25.
Rxe6 {[%clk 0:01:54.7]} 25... Bxh5 {[%clk 0:01:43.5]} 26. Rd4 {[%clk 0:01:48.7]}
26... Rf7 {[%clk 0:01:35.1]} 27. Re5 {[%clk 0:01:47.2]} 27... Bg6 {[%clk
0:01:30.4]} 28. g4 {[%clk 0:01:47.2]} 28... Raf8 {[%clk 0:01:23.8]} 29. h4
{[%clk 0:01:47.1]} 29... Rf4 {[%clk 0:01:20.8]} 30. Rd7 {[%clk 0:01:45]} 30...
Rxc4 {[%clk 0:01:15.7]} 31. h5 {[%clk 0:01:43.9]} 31... Be8 {[%clk 0:01:07.8]}
32. Rd8 {[%clk 0:01:31.2]} 32... Bf7 {[%clk 0:01:02.4]} 33. Rd7 {[%clk
0:01:28.6]} 33... Re8 {[%clk 0:00:54.3]} 34. Rb5 {[%clk 0:01:24.2]} 34... Re1+
{[%clk 0:00:49.2]} 35. Kb2 {[%clk 0:01:23.9]} 35... Be8 {[%clk 0:00:48.6]} 36.
Rd8 {[%clk 0:01:20.7]} 36... b6 {[%clk 0:00:48.6]} 37. g5 {[%clk 0:01:15.9]}
37... c5 {[%clk 0:00:48.1]} 38. gxh6 {[%clk 0:01:13]} 38... gxh6 {[%clk
0:00:46.7]} 39. Rb3 {[%clk 0:01:11.6]} 39... Rb4 {[%clk 0:00:46.4]} 40. Rxb4
{[%clk 0:01:10.5]} 40... cxb4 {[%clk 0:00:44.9]} 41. Kb3 {[%clk 0:01:02.5]}
41... Kg7 {[%clk 0:00:41.4]} 42. Kxb4 {[%clk 0:01:01.6]} 42... Re7 {[%clk
0:00:38.1]} 43. a4 {[%clk 0:01:00.4]} 43... Bxh5 {[%clk 0:00:36.7]} 44. a5
{[%clk 0:00:59.9]} 44... bxa5+ {[%clk 0:00:36.7]} 45. Kxa5 {[%clk 0:01:00]}
45... Bf3 {[%clk 0:00:34.1]} 46. c4 {[%clk 0:00:59.3]} 46... h5 {[%clk
0:00:33.3]} 47. c5 {[%clk 0:00:56.8]} 47... h4 {[%clk 0:00:32.9]} 48. Kb5 {[%clk
0:00:57.1]} 48... h3 {[%clk 0:00:30.9]} 49. Rd2 {[%clk 0:00:56.6]} 49... Bg2
{[%clk 0:00:30.5]} 0-1